Cogmind - Beta 14 @@@ ROGUE MODE // 2024.12.24 @ 13:51:40 Player: Charango24 Result: Destroyed by L-31 Rogue with Katana Performance ------------- Evolutions (2) 1000 Regions Visited (4) 800 Robots Destroyed (90) 450 Value Destroyed (2508) 2508 Prototype IDs (0) 0 Alien Tech Used (0) 0 Bonus (330) 330 TOTAL SCORE: 5088 Bonus ------- High Alert Combat Kills 295 Follower Combat Kills 35 Cogmind --------- Core Integrity 0/550 Matter 228/300 Energy 100/100 System Corruption 0% Temperature Cool (0) Movement Core (700) Ox13 Location -8/Materials Parts ------- > --- POWER (2) -------- (None) > --- PROPULSION (2) --- (None) > --- UTILITY (5) ------ High-capacity Storage Unit Improved Signal Interpreter Transport Network Coupler Advanced Targeting Computer > --- WEAPON (2) ------- Katana > --- INVENTORY (20) --- Advanced Visual Processing Unit Improved Signal Interpreter Grenade Launcher Peak State ------------ > --- POWER ------------ Light Nuclear Core > --- PROPULSION ------- Titanium Leg Titanium Leg > --- UTILITY ---------- Small Storage Unit Improved Signal Interpreter Transport Network Coupler Advanced Targeting Computer Hacking Suite > --- WEAPON ----------- Shotgun Minigun > --- INVENTORY -------- Light Nuclear Core Titanium Leg Visual Processing Unit Improved Signal Interpreter Improved Utility Shielding System Shield Heavy Assault Rifle Grenade Launcher [Rating: 27] Favorites ----------- Power Light Nuclear Core Engine Light Ion Engine Power Core Light Nuclear Core Propulsion Aluminum Leg Leg Aluminum Leg Utility Small Storage Unit Device Improved Terrain Scanner Storage Small Storage Unit Processor Transport Network Coupler Hackware Hacking Suite Protection Light Armor Plating Weapon Light Assault Rifle Ballistic Gun Light Assault Rifle Special Weapon Mining Laser Slashing Weapon Katana Build | -11 -10 -10 -9 -8 ------- Run | Yrd Mat Min Mat Mat Slots Evolved 4 | . . . 2 2 Power 1 | . . . 1 . Propulsion . | . . . . . Utility 3 | . . . 1 2 Weapon . | . . . . . Parts Attached 47 | 7 1 3 18 18 Power 7 | 1 . 1 2 3 Engine 3 | 1 . . 2 . Core 4 | . . 1 . 3 Reactor . | . . . . . Propulsion 11 | 2 . 1 6 2 Treads . | . . . . . Leg 11 | 2 . 1 6 2 Wheel . | . . . . . Hover . | . . . . . Flight . | . . . . . Utility 12 | 2 . . 4 6 Device 1 | 1 . . . . Storage 2 | 1 . . . 1 Processor 4 | . . . . 4 Hackware 2 | . . . 1 1 Protection 3 | . . . 3 . Artifact . | . . . . . Weapon 17 | 2 1 1 6 7 Energy Gun . | . . . . . Energy Cannon . | . . . . . Ballistic Gun 15 | 2 1 . 6 6 Ballistic Cannon . | . . . . . Launcher . | . . . . . Special Weapon 1 | . . 1 . . Impact Weapon . | . . . . . Slashing Weapon 1 | . . . . 1 Piercing Weapon . | . . . . . Special Melee Weapon . | . . . . . Unidentified Prototypes . | . . . . . Parts Lost 25 | . 1 1 10 13 Power 5 | . 1 . 2 2 Propulsion 8 | . . 1 4 3 Utility 6 | . . . 2 4 Weapon 6 | . . . 2 4 Highest Loss Streak 3 | . 1 1 3 3 To Critical Strikes . | . . . . . Average Slot Usage (%) 86 | . 96 96 75 85 Engine 4 | . 13 . 4 1 Core 4 | . . 10 . 7 Leg 20 | . 28 27 18 16 Device 5 | . 14 14 2 . Storage 10 | . 14 14 11 7 Processor 8 | . . . . 25 Hackware 5 | . . . 7 8 Protection 3 | . . . 9 1 Ballistic Gun 20 | . 25 22 21 16 Special Weapon 1 | . . 5 . . Peak Build Rating 27 | 9 9 11 18 27 Average Rating 14 | 6 8 10 12 23 On Entrance 9 | . 9 8 11 18 Naked Turns . | . . . . . Heaviest Build 51 | 12 12 14 23 51 Greatest Support 34 | 20 20 20 34 34 Greatest Overweight (x) 4 | . . . 4 2 Average Overweight (x) . | . . . . . Largest Inventory Capacity 20 | 8 8 8 8 20 Average Capacity 8 | 7 8 8 8 9 Most Carried 8 | 3 4 4 8 8 Average Carried 4 | . 2 3 6 6 Final Capacity 20 | 8 8 8 8 20 Final Carried 8 | 2 4 4 8 3 Class Distribution -------------------- 54% | Mutant 45% | Scavenger-Mutant Dominant Class ---------------- Mutant | -10/Materials Mutant | -10/Mines Mutant | -9/Materials Scavenger-Mutant | -8/Materials Resources | -11 -10 -10 -9 -8 ----------- Run | Yrd Mat Min Mat Mat Matter Collected 1921 | 354 207 74 503 783 Remotely . | . . . . . Salvage Created 3168 | 174 371 149 1100 1374 Parts 207 | 16 19 7 87 78 Haulers Intercepted 2 | . . . 2 . Recyclers Shooed 2 | . 2 . . . Parts Field Recycled . | . . . . . Retrieved Matter . | . . . . . Parts Self-Destructed . | . . . . . Prevented . | . . . . . Kills | -11 -10 -10 -9 -8 ------- Run | Yrd Mat Min Mat Mat Combat Hostiles Destroyed 66 | . 11 3 23 29 Melee 2 | . . . . 2 Guns 62 | . 11 3 23 25 AOE 2 | . . . . 2 Classes Destroyed 11 | 3 2 . 5 1 Worker 8 | 1 . . 3 4 Builder 1 | . . . 1 . Tunneler 4 | 4 . . . . Hauler 2 | . . . 2 . Recycler 3 | 1 . . 1 1 Operator 2 | . . . 2 . Watcher 4 | . . . 1 3 Swarmer 16 | . 3 . 8 5 Grunt 37 | . 8 3 8 18 Duelist 2 | . . . . 2 Sentry 11 | . . . 7 4 Best Kill Streak 7 | 3 2 2 6 7 Combat Bots Only 6 | . 2 2 6 5 Max Kills in Single Turn 4 | 1 1 1 1 4 Gunslinging . | . . . . . Exploded 2 | . . . . 2 Melee 1 | . . . . 1 Uniques/NPCs Destroyed . | . . . . . Combat | -11 -10 -10 -9 -8 -------- Run | Yrd Mat Min Mat Mat Hostile Shots Fired 378 | . 57 13 135 173 Missed 105 | . 17 3 46 39 Damage Taken 3732 | . 433 129 987 2183 Core 950 | . 133 52 208 557 Absorbed by Shields . | . . . . . Regen/Repaired (Parts) 249 | . . . . 249 Core Remaining (%) 58 | 100 . 26 48 . Volleys Fired 304 | 21 69 19 91 104 Largest 2 | 2 2 2 2 2 Hottest 100 | 40 40 100 46 48 Shots Fired 555 | 42 113 31 178 191 Gun 548 | 42 113 24 178 191 Cannon . | . . . . . Launcher . | . . . . . Special 7 | . . 7 . . Kinetic 548 | 42 113 24 178 191 Thermal 7 | . . 7 . . Explosive . | . . . . . Electromagnetic . | . . . . . Robot Hit Streak 14 | 11 8 5 14 14 Robot Miss Streak 7 | 5 6 2 7 7 Penetration Max . | . . . . . Secondary Targets 5 | . 1 1 . 3 Max Gunslinging Chain 1 | . 1 1 . 1 Shots Hit Robots 370 | 25 60 15 115 155 Core Hits 180 | 9 28 9 58 76 Critical Kills 2 | . . . 1 1 Critical Parts Destroyed 2 | . 1 . 1 . Critical Strikes 4 | . 1 . 2 1 Destroy 4 | . 1 . 2 1 Melee Attacks 6 | . . . . 6 Impact . | . . . . . Slashing 6 | . . . . 6 Piercing . | . . . . . Sneak Attacks . | . . . . . Combat Hostiles . | . . . . . Follow-up Attacks . | . . . . . Damage Inflicted 5456 | 225 597 144 1393 3097 Guns 4872 | 225 597 144 1393 2513 Cannons . | . . . . . Explosions 478 | . . . . 478 Melee 106 | . . . . 106 Ramming . | . . . . . Kinetic 4872 | 225 597 144 1393 2513 Thermal 478 | . . . . 478 Explosive . | . . . . . Electromagnetic . | . . . . . Impact . | . . . . . Slashing 106 | . . . . 106 Piercing . | . . . . . Highest Corruption . | . . . . . Average Corruption . | . . . . . Corruption Purged . | . . . . . Corruption Blocked . | . . . . . Overload Shots . | . . . . . Overflow Damage 197 | . . . . 197 Projectiles . | . . . . . Explosions 197 | . . . . 197 Melee . | . . . . . Knockbacks . | . . . . . Impact . | . . . . . Kinetic . | . . . . . Secondary . | . . . . . Self-Inflicted Damage 112 | . . . . 112 Shots 1 | . . . . 1 Rammed . | . . . . . Targets Rammed . | . . . . . Kicked . | . . . . . Crushed . | . . . . . Highest Temperature 98 | . 15 98 46 54 Average Temperature 21 | . 8 38 12 16 Received Heat Transfer 1545 | . 186 72 333 954 Siege Activations . | . . . . . Robots Corrupted . | . . . . . Combat Hostiles . | . . . . . Parts Fried . | . . . . . Impact Corruptions . | . . . . . Robots Melted . | . . . . . Combat Hostiles . | . . . . . Parts Melted . | . . . . . Heat Transferred 300 | . . . . 300 Parts Sabotaged . | . . . . . Parts Stolen . | . . . . . Parts Stripped . | . . . . . Power Chain Reactions . | . . . . . Alert | -11 -10 -10 -9 -8 ------- Run | Yrd Mat Min Mat Mat Peak Influence 843 | 30 239 182 411 843 Initial 173 | . 19 88 . 173 Average 264 | 12 105 81 247 495 Maximum Alert Level 3 | . 1 . 2 3 Low Security (%) 50 | 100 87 100 36 9 Level 1 25 | . 12 . 63 17 Level 2 18 | . . . . 56 Level 3 5 | . . . . 16 Level 4 . | . . . . . Level 5 . | . . . . . High Security . | . . . . . Max Security . | . . . . . Squads Dispatched 12 | . 3 . 2 7 Investigation 7 | . 2 . . 5 Extermination . | . . . . . Reinforcement 3 | . 1 . 2 . Assault 2 | . . . . 2 Garrison . | . . . . . Intercept . | . . . . . Searches Triggered . | . . . . . Construction Impeded . | . . . . . Haulers Reinforced . | . . . . . Active Scanning Responses . | . . . . . Cargo Convoy Interrupts . | . . . . . Stealth | -11 -10 -10 -9 -8 --------- Run | Yrd Mat Min Mat Mat Distress Signals 10 | . 3 . 1 6 Communications Jammed . | . . . . . Distress Signals . | . . . . . Times Spotted 113 | . 21 4 34 54 Peak Tracking Total 7 | . 3 1 5 7 Tactical Retreats 11 | . 2 . 2 7 Traps | -11 -10 -10 -9 -8 ------- Run | Yrd Mat Min Mat Mat Traps Triggered 1 | . 1 . . . Indirectly . | . . . . . Trap Hack Attempts . | . . . . . Triggered . | . . . . . Disarmed . | . . . . . Reprogrammed 5 | . 4 . 1 . Reused 1 | . . . 1 . Traps Extracted . | . . . . . Installed . | . . . . . Triggered 1 | . . . 1 . Machines | -11 -10 -10 -9 -8 ---------- Run | Yrd Mat Min Mat Mat Machines Disabled 1 | . . . . 1 Max in Single Turn 1 | . . . . 1 Machines Repaired . | . . . . . Machines Dismantled . | . . . . . Machines Sabotaged . | . . . . . Overloaded Fab Kills . | . . . . . Hacking | -11 -10 -10 -9 -8 --------- Run | Yrd Mat Min Mat Mat Machines Accessed 17 | . 6 . 3 8 Terminals 13 | . 4 . 3 6 Fabricators . | . . . . . Repair Stations 2 | . 1 . . 1 Recycling Units 1 | . 1 . . . Scanalyzers 1 | . . . . 1 Garrison Access . | . . . . . Total Hacks 62 | . 17 . 8 37 Successful 40 | . 10 . 5 25 Failed 22 | . 7 . 3 12 Catastrophic 2 | . . . 1 1 Database Lockouts . | . . . . . Manual 7 | . . . 2 5 Terminals 41 | . 12 . 8 21 Fabricators . | . . . . . Repair Stations 7 | . 1 . . 6 Recycling Units 4 | . 4 . . . Scanalyzers 10 | . . . . 10 Garrison Access . | . . . . . Terminal Hacks 22 | . 6 . 5 11 Record 4 | . . . . 4 Robot Analysis 1 | . . . . 1 Emergency Access Points 3 | . 1 . 1 1 Alert Level 3 | . . . 1 2 Locate Traps 3 | . 1 . 1 1 Reprogram Traps 2 | . 1 . 1 . Dispatch Records 1 | . . . . 1 Investigation Status 1 | . 1 . . . Assault Status 1 | . . . . 1 Recall Investigation 1 | . 1 . . . Hauler Manifests 2 | . 1 . 1 . Fabricator Hacks . | . . . . . Repair Station Hacks 6 | . 1 . . 5 Scan Component 4 | . 1 . . 3 Repair 2 | . . . . 2 Recycling Unit Hacks 3 | . 3 . . . Recycle Component 2 | . 2 . . . Retrieve Components 1 | . 1 . . . Scanalyzer 9 | . . . . 9 Insert Component 5 | . . . . 5 Analyze 4 | . . . . 4 Garrison Access Hacks . | . . . . . Unauthorized Hacks . | . . . . . Terminals . | . . . . . Fabricators . | . . . . . Repair Stations . | . . . . . Recycling Units . | . . . . . Scanalyzers . | . . . . . Garrison Access . | . . . . . Data Cores Recovered . | . . . . . Used . | . . . . . Hacking Detections 13 | . 3 . 2 8 Full Trace Events 6 | . 1 . . 5 Feedback Events 1 | . . . . 1 Hackware Fried 1 | . . . . 1 Feedback Blocked . | . . . . . Robot Schematics Acquired . | . . . . . Robots Built . | . . . . . Authchips . | . . . . . Time . | . . . . . Total Robot Build Rating . | . . . . . Part Schematics Acquired 4 | . . . . 4 Parts Built . | . . . . . Authchips . | . . . . . Time . | . . . . . Total Part Build Rating . | . . . . . Parts Repaired 2 | . . . . 2 Time 70 | . . . . 70 Parts Recycled 2 | . 2 . . . Recycled Matter . | . . . . . Retrieved Matter . | . . . . . Retrieved Components 2 | . 2 . . . Parts Scanalyzed 4 | . . . . 4 Part Schematics Acquired 4 | . . . . 4 Parts Damaged . | . . . . . Bothacking | -11 -10 -10 -9 -8 ------------ Run | Yrd Mat Min Mat Mat Used RIF Installer . | . . . . . Robots Hacked . | . . . . . Non-combat . | . . . . . Combat . | . . . . . Robot Hacks Applied . | . . . . . Relay Couplers Released . | . . . . . Fabnet Peak Effective % . | . . . . . Robots Rewired . | . . . . . Allies Hacked . | . . . . . Hacks Repelled . | . . . . . Allies | -11 -10 -10 -9 -8 -------- Run | Yrd Mat Min Mat Mat Total Allies 1 | . . 1 . . Largest Group 1 | . . 1 . . Highest-Rated Group 31 | . . 31 . . Highest-Rated Ally 31 | . . 31 . . Total Orders . | . . . . . Ally Attacks 2 | . . 2 . . Total Damage 22 | . . 22 . . Kills 1 | . . 1 . . Allies Corrupted . | . . . . . Allies Melted . | . . . . . Intel | -11 -10 -10 -9 -8 ------- Run | Yrd Mat Min Mat Mat Robot Analysis Total 1 | . . . . 1 Derelict Logs Recovered 1 | . . 1 . . Drone Launches . | . . . . . Drone Recoveries . | . . . . . Exploration | -11 -10 -10 -9 -8 ------------- Run | Yrd Mat Min Mat Mat Turns Passed 3962 | 220 677 640 1121 1304 Spaces Moved 2116 | 123 399 472 563 559 Core 6 | 5 . . 1 . Treads . | . . . . . Legs 2110 | 118 399 472 562 559 Wheels . | . . . . . Hover . | . . . . . Flight . | . . . . . Fastest Speed 50 | 50 120 120 120 130 Average Speed 132 | 117 120 120 141 147 Slowest Speed 270 | 120 120 120 250 270 Overloaded Moves . | . . . . . Propulsion Burnouts . | . . . . . Robots Hopped . | . . . . . Cave-ins Triggered . | . . . . . Exploration Rate (%) 50 | 6 62 85 51 48 Regions Visited 4 Branch Regions 1 Pre-discovered Areas . | . . . . . Known Exits Taken . | . . . . . Unknown Exits Taken 4 | 1 1 1 1 . Scrap Searched 1 | . . 1 . . Spaces Dug 7 | . . 7 . . Terrain Destroyed 24 | . . 7 . 17 Melee . | . . . . . Projectile 7 | . . 7 . . AOE 17 | . . . . 17 Terrain Rammed . | . . . . . Walls Destroyed . | . . . . . Machines Disabled . | . . . . . Actions | -11 -10 -10 -9 -8 --------- Run | Yrd Mat Min Mat Mat Total 2748 | 161 499 503 734 851 Wait 183 | 2 24 7 22 128 Move 2112 | 122 398 471 562 559 Hop . | . . . . . Pick Up 65 | 9 5 2 26 23 Fast Attach . | . . . . . Attach 46 | 7 1 3 17 18 Detach 8 | . 1 1 4 2 Swap 1 | . . . 1 . Drop 23 | . 1 . 11 11 Fire 304 | 21 69 19 91 104 Melee 6 | . . . . 6 Ram . | . . . . . Kick . | . . . . . Crush . | . . . . . Escape Stasis . | . . . . . Rewire . | . . . . . Trap . | . . . . . Miscellaneous . | . . . . . Route ------- -11/Scrapyard -10/Materials (discovered 2 exits: *Mat / [*Min]) -10/Mines (discovered 2 exits: *Mat x2) -9/Materials -8/Materials History --------- Turn | Location | Event 15 | -11/Scrapyard | Discovered new exit (range 16) 221 | -11/Scrapyard | Entered Materials 317 | -10/Materials | Build established: Mutant 442 | -10/Materials | Discovered new exit (range 12) 647 | -10/Materials | Discovered new exit (range 15) 832 | -10/Materials | Core integrity fell below 50% 898 | -10/Materials | Entered Mines 1220 | -10/Mines | Learned Materials trap positions 1223 | -10/Mines | Discovered new exit (range 15) 1228 | -10/Mines | Received a Mining Laser from a helpful Derelict 1515 | -10/Mines | Discovered new exit (range 10) 1538 | -10/Mines | Entered Materials 1538 | -9/Materials | Evolved 2 slots: Power x1, Utility x1 1539 | -9/Materials | Loaded intel: 19 trap records 1655 | -9/Materials | Lost 3 parts (1p1n1w) 1782 | -9/Materials | Lost 3 parts (1n1u1w) 2166 | -9/Materials | Build established: Scavenger-Mutant 2607 | -9/Materials | Core integrity fell below 50% 2615 | -9/Materials | Discovered new exit (range 9) 2659 | -9/Materials | Entered another Materials area 2659 | -8/Materials | Evolved 2 slots: Utility x2 3265 | -8/Materials | Repaired Shotgun 3308 | -8/Materials | Repaired Titanium Leg 3459 | -8/Materials | First assault squad dispatched 3737 | -8/Materials | Core integrity fell below 50% 3801 | -8/Materials | Lost 3 parts (1n2w) 3902 | -8/Materials | Hacking Suite fried by hacking feedback 3959 | -8/Materials | Core integrity fell below 20% 3963 | -8/Materials | Destroyed by L-31 Rogue with Katana Last Messages --------------- Downloaded coordinate data. 03902_ Connecting with Terminal... Feedback: Hacking Suite fried. 03902_ ALERT: Suspicious activity at Terminal M001. Dispatching Investigation squad. 03918_ Connecting with Terminal... 03918_ ALERT: Suspicious activity at Terminal M007. Dispatching Investigation squad. 03942_ C-30 ARC bursts open, deploying its payload. 03942_ G-50 Soldier unfolds itself. 03942_ L-31 Rogue unfolds itself. 03942_ G-47 Trooper unfolds itself. 03942_ L-31 Rogue unfolds itself. 03942_ M-28 Smith unfolds itself. 03955_ Lgt. Nuclear Core destroyed. 03958_ Titanium Leg destroyed. 03959_ Lgt. Assault Rifle destroyed. 03960_ Critical hit (Burn: +37). 03961_ L-31 Rogue destroyed. Map ----- +----------------------------------------------------+ | # """ =# ##??????????# ! !!! # #???????????? | | + """ !# ############ !! # #???????????? | | # """ # / !!= #% #???????????? | | # # ############ % # #???????????? | | # """ ## ##??????????# % # a#???????????? | | # """ ## #???????????# %+ #???????????? | | # """ ## #???????????# = # #???????????? | | # ## #???????????# %#* #???????????? | | ######### #???????????# [" #???????????? | | #??????##+######??????###"" """# #???????????? | | #??????# #????????###""# # #???????????? | | #??????# #??????????###### #???????????? | | #??????# [[[#???????????????# #???????????? | | #??????# [[[################# #???????????? | | #??????# [[[# ^ a #???????????? | | #??????# # ^ #???????????? | | +??????# [ * + """^ """ #???????????? | | ???????# # """^ """ #???????????? | | ?????????# = "T" # ##### """ """ #???????????? | | ?????????# """ #?????# ######??????? | | ?????????# #?????# # #??????? | | ?????????#####+###+##### """ """"%"# "" #??????? | | ?????????????# # """ """ " # "" #??????? | | ?????????????# """ # """ """ # T" #??????? | | ?????????????# """"" # lg g + "" #??????? | | ?????????????# """"" + @% # "" #??????? | | ?????????????# """"" # """ # #??????? | | ?????????????# """ # """ # #??????? | | ?????????????# # """ #= #??????? | | ?????????????# ! # ######??????? | | ?????????????########### "T" #???????????? | | ???????????????????????# """ #???????????? | | ???????????????????????# ########+#######??????? | | ???????????????????????# ## ! ! #??????? | | ???????????????????????###### "#??????? | | ????????????????????????????# T#??????? | | ????????????????????????????# """"" "#??????? | | ????????????????????????????# """"""""" #??????? | | ????????????????????????????# """ """ !#??????? | | ????????????????????????????###############??????? | | | | | | | | | | | | | | | | | | | | | +----------------------------------------------------+ Best States ------------- Heat Dissipation 31 Energy Generation 14 Energy Capacity 250 Matter Stores 300 Matter Capacity 300 Sight Range 16 Terrain Scan Range 16 Terrain Scan Density 10 Armor Coverage 225 Evasion (%) 55 Targeting Accuracy 8 Offensive Hacking 10 Item Schematics ----------------- Imp. Signal Interpreter | -8/Materials | Scanalyzed Titanium Leg | -8/Materials | Scanalyzed Grenade Launcher | -8/Materials | Scanalyzed Imp. Utility Shielding | -8/Materials | Scanalyzed Robot Schematics ------------------ None Fabricated ------------ Nothing Alien Tech Used ----------------- None Achievements -------------- GoHome() Challenges ------------ None Game ------ Seed VoltaicPersonalScrapsphere Manual? 0 Play Time 00:36:10 Cumulative 13.4 hours Start 2024.12.23 @ 21:27:16 End 2024.12.24 @ 13:51:40 Sessions 3 Manual Loads 0 Difficulty Rogue Special Mode None Game No. 20 Rogue 7 Adventurer 13 Explorer 0 Win Type - Total 0 Types 0/0/0/0/0/0/0/0/0 Lore% 8 Gallery% 21 Achievement% 21 Wizard Run 0 Options --------- Layout 1 ASCII 0 Keyboard 1 Movement Numpad Keybinds 0 Fullscreen 2 Font 24/Smallcaps Map View 50x35 Zoom Use 0% Tactical HUD 1 Map Filters NONE Filters NONE Steam 1 RUN: acc735f0-181e-4baf-b781-cfdaf24b731e